[Event "35th European Club Cup 2019"]
[Site "Ulcinj"]
[Date "2019.11.14"]
[Round "5.24"]
[White "Vanheirzeele, Daniel"]
[Black "Kriebel, Tadeas"]
[Result "0-1"]
[ECO "D02"]
[WhiteElo "2105"]
[BlackElo "2516"]
[Annotator "RC"]
[PlyCount "114"]
[EventDate "2019.11.10"]
[EventType "team-tourn"]
[EventCountry "MNE"]
[SourceTitle "playchess.com"]
[Source "ChessBase"]
[SourceQuality "1"]
[WhiteTeam "KGSRL Gent"]
[BlackTeam "Novy Bor"]
[TimeControl "40/5400+30:1800+30"]

1. d4 {[%emt 0:00:00]} d5 {[%emt 0:00:00]} 2. Nf3 {[%emt 0:00:00]} Nf6 {[%emt 0:00:00]} 3. c4 {[%emt 0:04:58]} e6 {[%emt 0:00:50]} 4. g3 {[%emt 0:00:07]} Bb4+ {[%emt 0:00:37]} 5. Bd2 {[%emt 0:01:54]} Bd6 {[%emt 0:00:18]} 6. Bg2 {[%emt 0:02:20]} c6 {[%emt 0:01:09]} 7. O-O {[%emt 0:03:38]} O-O {[%emt 0:03:58]} 8. Bg5 {[%emt 0:21:46]} Nbd7 {[%emt 0:03:31]} 9. e4 {[%emt 0:05:00]} dxe4 {[%emt 0:01:55]} 10. Nfd2 {[%emt 0:00:04]} Be7 {[%emt 0:02:30]} 11. Nc3 {[%emt 0:05:37]} e5 {[%emt 0:14:20]} 12. Bxf6 {[%emt 0:03:40]} Nxf6 {[%emt 0:02:08]} 13. dxe5 {[%emt 0:03:57]} Ng4 {[%emt 0:00:16]} 14. Ndxe4 {[%emt 0:05:36]} Qxd1 {[%emt 0:05:40]} 15. Raxd1 {[%emt 0:04:34]} Nxe5 {[%emt 0:00:05]} 16. c5 {[%emt 0:02:23]} Bg4 {[%emt 0:02:30]} 17. f3 {[%emt 0:01:41]} Be6 {[%emt 0:00:33]} 18. f4 {[%emt 0:12:43]} Nc4 {[%emt 0:02:28]} 19. f5 {[%emt 0:02:57]} Bc8 {[%emt 0:00:24]} 20. Rf3 {[%emt 0:02:42]} f6 {[%emt 0:17:16]} 21. b3 {[%emt 0:08:27]} Ne5 {[%emt 0:00:25]} 22. Rf4 {[%emt 0:01:47]} b6 {[%emt 0:00:59]} 23. Na4 {[%emt 0:01:46]} Rb8 {[%emt 0:03:19]} 24. Nd6 {[%emt 0:01:03]} Rd8 {[%emt 0:05:27]} 25. b4 {[%emt 0:00:16]} bxc5 {[%emt 0:00:49]} 26. bxc5 {[%emt 0:00:04]} Ba6 {[%emt 0:01:51]} 27. Rfd4 {[%emt 0:02:30]} Be2 {[%emt 0:00:33]} 28. Re1 {[%emt 0:00:19]} Bf3 {[%emt 0:06:50]} 29. Re3 {[%emt 0:00:02]} Rb1+ {[%emt 0:03:56]} 30. Kf2 {[%emt 0:00:20]} Bh5 {[%emt 0:00:27]} 31. h3 {[%emt 0:01:22]} Bf7 {[%emt 0:04:24]} 32. Nc3 {[%emt 0:00:55]} Rc1 {[%emt 0:00:38]} 33. Rd2 {[%emt 0:01:20]} Bf8 {[%emt 0:04:24]} 34. g4 {[%emt 0:00:20]} Nc4 {[%emt 0:06:52]} 35. Nxc4 {[%emt 0:00:10]} Rxd2+ {[%emt 0:00:04]} 36. Nxd2 {[%emt 0:00:03]} Bxc5 {[%emt 0:00:06]} 37. Ne2 {[%emt 0:01:14]} Rc2 {[%emt 0:00:59]} 38. Nb3 {[%emt 0:00:39]} Bxe3+ {[%emt 0:00:29]} 39. Kxe3 {[%emt 0:00:02]} Rxa2 {[%emt 0:00:36]} 40. Nbd4 {[%emt 0:00:00]} c5 {[%emt 0:00:00]} 41. Ne6 {[%emt 0:06:56]} Bxe6 {[%emt 0:06:54]} 42. fxe6 {[%emt 0:01:19]} Kf8 {[%emt 0:00:03]} 43. h4 {[%emt 0:04:57]} Ke7 {[%emt 0:00:44]} 44. Bd5 {[%emt 0:00:24]} Ra3+ {[%emt 0:00:58]} 45. Ke4 {[%emt 0:05:19]} Ra4+ {[%emt 0:00:27]} 46. Kf3 {[%emt 0:01:31]} a5 {[%emt 0:00:59]} 47. Ng3 {[%emt 0:01:37]} g6 {[%emt 0:00:51]} 48. Ne4 {[%emt 0:01:01]} Rd4 {[%emt 0:01:32]} 49. Ba2 {[%emt 0:01:18]} c4 {[%emt 0:04:15]} 50. Ke3 {[%emt 0:01:48]} Rd3+ {[%emt 0:00:05]} 51. Ke2 {[%emt 0:00:29]} a4 {[%emt 0:01:33]} 52. g5 {[%emt 0:03:24]} fxg5 {[%emt 0:11:15]} 53. hxg5 {[%emt 0:00:47]} a3 {[%emt 0:00:05]} 54. Nd2 {[%emt 0:03:27]} Rc3 {[%emt 0:03:10]} 55. Kd1 {[%emt 0:01:07]} Kxe6 {[%emt 0:00:25]} 56. Nxc4 {[%emt 0:00:22]} Kf5 {[%emt 0:05:14]} 57. Nd2 {[%emt 0:01:18]} Ke5 0-1

[Event "35th European Club Cup 2019"]
[Site "Ulcinj"]
[Date "2019.11.14"]
[Round "5.24"]
[White "Gashi, Blerim"]
[Black "Bikady, Claude"]
[Result "1/2-1/2"]
[ECO "E00"]
[WhiteElo "2012"]
[BlackElo "1912"]
[Annotator "NA"]
[PlyCount "62"]
[EventDate "2019.11.10"]
[EventType "team-tourn"]
[EventCountry "MNE"]
[SourceTitle "playchess.com"]
[Source "ChessBase"]
[SourceQuality "1"]
[WhiteTeam "Prishtina"]
[BlackTeam "Echiquier Mosan"]
[TimeControl "40/5400+30:1800+30"]

1. d4 {[%emt 0:00:00]} Nf6 {[%emt 0:00:00]} 2. c4 {[%emt 0:00:13]} e6 {[%emt 0:00:02]} 3. a3 {[%emt 0:01:49]} b6 {[%emt 0:01:12]} 4. Bg5 {[%emt 0:01:30]} Bb7 {[%emt 0:01:05]} 5. Nc3 {[%emt 0:00:20]} Be7 {[%emt 0:00:45]} 6. e3 {[%emt 0:00:47]} O-O {[%emt 0:00:22]} 7. Nf3 {[%emt 0:00:15]} d5 {[%emt 0:00:59]} 8. Be2 {[%emt 0:01:54]} Nbd7 {[%emt 0:01:55]} 9. O-O {[%emt 0:00:25]} c5 {[%emt 0:01:03]} 10. Rc1 {[%emt 0:05:58]} Rc8 {[%emt 0:01:22]} 11. cxd5 {[%emt 0:03:26]} Nxd5 {[%emt 0:17:34]} 12. Bxe7 {[%emt 0:01:56]} Qxe7 {[%emt 0:01:41]} 13. Nxd5 {[%emt 0:04:08]} exd5 {[%emt 0:02:49]} 14. Bb5 {[%emt 0:01:13]} Nf6 {[%emt 0:03:05]} 15. Ne5 {[%emt 0:00:54]} a6 {[%emt 0:02:53]} 16. Bd3 {[%emt 0:03:56]} c4 {[%emt 0:02:08]} 17. Bb1 {[%emt 0:01:14]} b5 {[%emt 0:00:40]} 18. Qe1 {[%emt 0:05:04]} Rfd8 {[%emt 0:10:09]} 19. Qa5 {[%emt 0:01:58]} Qc7 {[%emt 0:01:38]} 20. Qxc7 {[%emt 0:00:48]} Rxc7 {[%emt 0:00:06]} 21. Nd3 {[%emt 0:00:09]} Nd7 {[%emt 0:04:51]} 22. b4 {[%emt 0:00:25]} Rcc8 {[%emt 0:04:14]} 23. Nc5 {[%emt 0:00:09]} Nxc5 {[%emt 0:00:36]} 24. dxc5 {[%emt 0:00:22]} d4 {[%emt 0:01:26]} 25. Bf5 {[%emt 0:02:11]} Rb8 {[%emt 0:02:02]} 26. exd4 {[%emt 0:00:51]} g6 {[%emt 0:01:22]} 27. Bc2 {[%emt 0:02:30]} Rxd4 {[%emt 0:01:18]} 28. Rfd1 {[%emt 0:00:11]} Rbd8 {[%emt 0:00:52]} 29. Rxd4 {[%emt 0:00:12]} Rxd4 {[%emt 0:00:01]} 30. Kf1 {[%emt 0:00:25]} Kf8 {[%emt 0:02:05]} 31. f3 {[%emt 0:03:32]} f5 {[%emt 0:06:14]} 1/2-1/2

[Event "35th European Club Cup 2019"]
[Site "Ulcinj"]
[Date "2019.11.14"]
[Round "5.27"]
[White "Bosiocic, Marin"]
[Black "Kosic, Dragan"]
[Result "1-0"]
[ECO "C10"]
[WhiteElo "2598"]
[BlackElo "2477"]
[Annotator "ChessBase"]
[PlyCount "98"]
[EventDate "2019.11.10"]
[EventType "team-tourn"]
[EventCountry "MNE"]
[SourceTitle "playchess.com"]
[Source "ChessBase"]
[SourceQuality "1"]
[WhiteTeam "Valerenga"]
[BlackTeam "Sloven Ruma"]
[TimeControl "40/5400+30:1800+30"]

1. e4 {[%emt 0:00:00]} e6 {[%emt 0:00:00]} 2. d4 {[%emt 0:00:00]} d5 {[%emt 0:00:00]} 3. Nc3 {[%emt 0:00:00]} dxe4 {[%emt 0:00:13]} 4. Nxe4 {[%emt 0:00:00]} Nd7 {[%emt 0:00:02]} 5. Nf3 {[%emt 0:00:16]} Ngf6 {[%emt 0:01:51]} 6. Bg5 {[%emt 0:00:09]} h6 {[%emt 0:01:58]} 7. Bh4 {[%emt 0:00:18]} Be7 {[%emt 0:01:03]} 8. Nxf6+ {[%emt 0:00:13]} Bxf6 {[%emt 0:00:07]} 9. Bxf6 {[%emt 0:00:10]} Qxf6 {[%emt 0:01:08]} 10. Qd2 {[%emt 0:03:15]} c5 {[%emt 0:01:21]} 11. O-O-O {[%emt 0:02:02]} O-O {[%emt 0:01:34]} 12. Bb5 {[%emt 0:02:32]} cxd4 {[%emt 0:06:31]} 13. Qxd4 {[%emt 0:00:13]} Qxd4 {[%emt 0:00:53]} 14. Rxd4 {[%emt 0:00:07]} Nf6 {[%emt 0:00:19]} 15. Ne5 {[%emt 0:01:11]} a6 {[%emt 0:03:00]} 16. Be2 {[%emt 0:00:11]} b5 {[%emt 0:00:25]} 17. Bf3 {[%emt 0:00:21]} Ra7 {[%emt 0:00:25]} 18. Rd6 {[%emt 0:05:45]} Rc7 {[%emt 0:04:46]} 19. Rhd1 {[%emt 0:00:22]} g5 {[%emt 0:07:50]} 20. b4 {[%emt 0:05:43]} Kg7 {[%emt 0:05:34]} 21. a3 {[%emt 0:03:38]} Ng8 {[%emt 0:08:36]} 22. Nd3 {[%emt 0:04:26]} Ne7 {[%emt 0:04:07]} 23. Nc5 {[%emt 0:00:38]} Ra7 {[%emt 0:10:48]} 24. Be4 {[%emt 0:04:21]} g4 {[%emt 0:04:44]} 25. g3 {[%emt 0:04:59]} h5 {[%emt 0:00:41]} 26. Kb2 {[%emt 0:06:08]} Rh8 {[%emt 0:01:10]} 27. Rd8 {[%emt 0:03:34]} Rxd8 {[%emt 0:09:15]} 28. Rxd8 {[%emt 0:00:42]} Rc7 {[%emt 0:00:41]} 29. Kb3 {[%emt 0:03:08]} e5 {[%emt 0:09:06]} 30. Rd6 {[%emt 0:03:35]} f5 {[%emt 0:04:35]} 31. Bg2 {[%emt 0:01:08]} e4 {[%emt 0:07:53]} 32. c4 {[%emt 0:09:27]} Rc6 {[%emt 0:02:38]} 33. Rxc6 {[%emt 0:00:33]} Nxc6 {[%emt 0:00:05]} 34. cxb5 {[%emt 0:00:20]} Nd4+ {[%emt 0:00:26]} 35. Kc4 {[%emt 0:00:29]} Nxb5 {[%emt 0:00:05]} 36. a4 {[%emt 0:00:15]} Nc7 {[%emt 0:00:15]} 37. b5 {[%emt 0:01:03]} axb5+ {[%emt 0:00:59]} 38. axb5 {[%emt 0:00:07]} h4 {[%emt 0:01:03]} 39. b6 {[%emt 0:01:13]} Na8 {[%emt 0:00:19]} 40. b7 {[%emt 0:00:00]} Bxb7 {[%emt 0:00:00]} 41. Nxb7 {[%emt 0:03:37]} hxg3 {[%emt 0:02:50]} 42. hxg3 {[%emt 0:00:06]} Kf6 {[%emt 0:00:16]} 43. Kd4 {[%emt 0:06:48]} Nc7 {[%emt 0:00:19]} 44. Nc5 {[%emt 0:01:59]} Ne8 {[%emt 0:02:15]} 45. Bf1 {[%emt 0:00:27]} Ng7 {[%emt 0:00:36]} 46. Bc4 {[%emt 0:01:52]} Ne8 {[%emt 0:03:55]} 47. Ne6 {[%emt 0:00:09]} Nd6 {[%emt 0:00:20]} 48. Nf4 {[%emt 0:01:01]} Kg5 {[%emt 0:00:11]} 49. Kd5 {[%emt 0:02:33]} Ne8 {[%emt 0:01:08] Kxe4} 1-0

[Event "35th European Club Cup 2019"]
[Site "Ulcinj"]
[Date "2019.11.14"]
[Round "5.29"]
[White "Romanov, Evgeny"]
[Black "Laketic, Gojko"]
[Result "1-0"]
[ECO "E68"]
[WhiteElo "2597"]
[BlackElo "2346"]
[Annotator "RC"]
[PlyCount "135"]
[EventDate "2019.11.10"]
[EventType "team-tourn"]
[EventCountry "MNE"]
[SourceTitle "playchess.com"]
[Source "ChessBase"]
[SourceQuality "1"]
[WhiteTeam "Valerenga"]
[BlackTeam "Sloven Ruma"]
[TimeControl "40/5400+30:1800+30"]

1. c4 {[%emt 0:00:00]} Nf6 {[%emt 0:01:07]} 2. Nc3 {[%emt 0:00:09]} e5 {[%emt 0:03:48]} 3. Nf3 {[%emt 0:00:21]} d6 {[%emt 0:00:51]} 4. g3 {[%emt 0:01:19]} g6 {[%emt 0:00:24]} 5. Bg2 {[%emt 0:00:20]} Bg7 {[%emt 0:00:07]} 6. O-O {[%emt 0:02:19]} O-O {[%emt 0:00:44]} 7. d4 {[%emt 0:01:00]} Nbd7 {[%emt 0:01:24]} 8. e4 {[%emt 0:01:03]} a6 {[%emt 0:11:01]} 9. Re1 {[%emt 0:05:59]} Rb8 {[%emt 0:02:00]} 10. a4 {[%emt 0:10:24]} a5 {[%emt 0:00:24]} 11. h3 {[%emt 0:02:00]} Re8 {[%emt 0:03:10]} 12. Be3 {[%emt 0:03:15]} b6 {[%emt 0:13:48]} 13. Qc2 {[%emt 0:01:53]} Bb7 {[%emt 0:04:14]} 14. dxe5 {[%emt 0:09:47]} dxe5 {[%emt 0:03:20]} 15. Red1 {[%emt 0:00:08]} Qc8 {[%emt 0:16:20]} 16. Nd5 {[%emt 0:03:23]} c6 {[%emt 0:22:36]} 17. Nxf6+ {[%emt 0:01:51]} Bxf6 {[%emt 0:00:30]} 18. h4 {[%emt 0:05:13]} Nc5 {[%emt 0:00:33]} 19. Bxc5 {[%emt 0:01:26]} bxc5 {[%emt 0:00:03]} 20. Kh2 {[%emt 0:00:28]} Qc7 {[%emt 0:03:13]} 21. Bh3 {[%emt 0:00:20]} Red8 {[%emt 0:01:18]} 22. Rxd8+ {[%emt 0:01:03]} Rxd8 {[%emt 0:00:26]} 23. Rd1 {[%emt 0:00:12]} Ba6 {[%emt 0:01:12]} 24. Rd3 {[%emt 0:05:03]} Kg7 {[%emt 0:02:43]} 25. b3 {[%emt 0:02:08]} Rxd3 {[%emt 0:01:22]} 26. Qxd3 {[%emt 0:00:02]} Be7 {[%emt 0:00:50]} 27. h5 {[%emt 0:04:59]} f6 {[%emt 0:02:15]} 28. hxg6 {[%emt 0:04:41]} hxg6 {[%emt 0:00:05]} 29. Nh4 {[%emt 0:00:08]} Bc8 {[%emt 0:03:05]} 30. Bxc8 {[%emt 0:03:25]} Qxc8 {[%emt 0:00:13]} 31. Qd1 {[%emt 0:00:21]} Bf8 {[%emt 0:00:30]} 32. Ng2 {[%emt 0:08:13]} Kf7 {[%emt 0:00:22]} 33. Kg1 {[%emt 0:02:48]} Kg7 {[%emt 0:00:44]} 34. g4 {[%emt 0:03:35]} Kf7 {[%emt 0:00:45]} 35. g5 {[%emt 0:00:11]} f5 {[%emt 0:01:15]} 36. Qd2 {[%emt 0:12:01]} f4 {[%emt 0:00:36]} 37. f3 {[%emt 0:04:25]} Qc7 {[%emt 0:00:08]} 38. Ne1 {[%emt 0:00:44]} Kg8 {[%emt 0:00:50]} 39. Kf1 {[%emt 0:00:47]} Be7 {[%emt 0:00:33]} 40. Ke2 {[%emt 0:00:00]} Bxg5 {[%emt 0:00:00]} 41. Nd3 {[%emt 0:01:50]} Be7 {[%emt 0:02:54]} 42. Kd1 {[%emt 0:02:18]} Kf7 {[%emt 0:21:30]} 43. Kc2 {[%emt 0:02:29]} Bd6 {[%emt 0:01:05]} 44. Qh2 {[%emt 0:00:46]} Kg7 {[%emt 0:00:19]} 45. Qh3 {[%emt 0:01:50]} Be7 {[%emt 0:05:27]} 46. Qe6 {[%emt 0:03:44]} Bd6 {[%emt 0:00:11]} 47. Nf2 {[%emt 0:02:58]} Qe7 {[%emt 0:00:26]} 48. Qc8 {[%emt 0:00:50]} Qc7 {[%emt 0:00:05]} 49. Qh3 {[%emt 0:00:18]} Qe7 {[%emt 0:00:32]} 50. Ng4 {[%emt 0:00:27]} Qg5 {[%emt 0:01:03]} 51. Qh2 {[%emt 0:00:17]} Bc7 {[%emt 0:00:40]} 52. Qg1 {[%emt 0:05:53]} Qe7 {[%emt 0:00:16]} 53. Qf2 {[%emt 0:01:01]} Kg8 {[%emt 0:00:49]} 54. Qh2 {[%emt 0:01:37]} Qg5 {[%emt 0:00:06]} 55. Qh3 {[%emt 0:00:48]} Bd6 {[%emt 0:01:33]} 56. Nf2 {[%emt 0:02:56]} Qg3 {[%emt 0:01:15]} 57. Qe6+ {[%emt 0:00:39]} Kg7 {[%emt 0:00:31]} 58. Nd3 {[%emt 0:05:14]} Bb8 {[%emt 0:00:49]} 59. Qe7+ {[%emt 0:00:16]} Kh6 {[%emt 0:00:29]} 60. Qf8+ {[%emt 0:00:08]} Kh5 {[%emt 0:00:13]} 61. Qh8+ {[%emt 0:01:11]} Kg5 {[%emt 0:00:05]} 62. Qxb8 {[%emt 0:00:21]} Qg2+ {[%emt 0:00:02]} 63. Kc3 {[%emt 0:00:25]} Qxf3 {[%emt 0:00:03]} 64. Qxe5+ {[%emt 0:00:27]} Kg4 {[%emt 0:00:26]} 65. Qe6+ {[%emt 0:00:45]} Kh5 {[%emt 0:00:09]} 66. Qf7 {[%emt 0:01:10]} Qxe4 {[%emt 0:02:06]} 67. Qxf4 {[%emt 0:01:00]} Qh1 {[%emt 0:01:01]} 68. Qe5+ {[%emt 0:00:11]} 1-0

[Event "35th European Club Cup 2019"]
[Site "Ulcinj"]
[Date "2019.11.14"]
[Round "5.30"]
[White "Kosanovic, Goran A"]
[Black "Kaasen, Tor Fredrik"]
[Result "1/2-1/2"]
[ECO "B50"]
[WhiteElo "2313"]
[BlackElo "2405"]
[Annotator "NA"]
[PlyCount "72"]
[EventDate "2019.11.10"]
[EventType "team-tourn"]
[EventCountry "MNE"]
[SourceTitle "playchess.com"]
[Source "ChessBase"]
[SourceQuality "1"]
[WhiteTeam "Sloven Ruma"]
[BlackTeam "Valerenga"]
[TimeControl "40/5400+30:1800+30"]

1. e4 {[%emt 0:00:00]} c5 {[%emt 0:00:00]} 2. Nf3 {[%emt 0:00:00]} d6 {[%emt 0:00:19]} 3. c3 {[%emt 0:02:40]} Nf6 {[%emt 0:00:42]} 4. h3 {[%emt 0:01:05]} g6 {[%emt 0:02:15]} 5. Bd3 {[%emt 0:01:27]} Bg7 {[%emt 0:00:27]} 6. O-O {[%emt 0:00:09]} O-O {[%emt 0:00:54]} 7. Re1 {[%emt 0:00:20]} Nc6 {[%emt 0:03:16]} 8. Bc2 {[%emt 0:01:39]} e5 {[%emt 0:03:39]} 9. d4 {[%emt 0:02:15]} exd4 {[%emt 0:05:12]} 10. cxd4 {[%emt 0:00:11]} cxd4 {[%emt 0:01:01]} 11. Nxd4 {[%emt 0:01:24]} Re8 {[%emt 0:00:45]} 12. Nxc6 {[%emt 0:01:47]} bxc6 {[%emt 0:00:08]} 13. Nc3 {[%emt 0:01:47]} d5 {[%emt 0:06:45]} 14. Bg5 {[%emt 0:18:02]} d4 {[%emt 0:11:53]} 15. e5 {[%emt 0:03:09]} dxc3 {[%emt 0:02:54]} 16. Qxd8 {[%emt 0:05:13]} Rxd8 {[%emt 0:00:09]} 17. bxc3 {[%emt 0:02:56]} Be6 {[%emt 0:14:48]} 18. exf6 {[%emt 0:06:49]} Bh8 {[%emt 0:01:50]} 19. Bh4 {[%emt 0:04:49]} Rd6 {[%emt 0:05:32]} 20. Red1 {[%emt 0:12:10]} Rxd1+ {[%emt 0:02:40]} 21. Bxd1 {[%emt 0:00:49]} h6 {[%emt 0:00:41]} 22. f4 {[%emt 0:00:25]} Rd8 {[%emt 0:00:39]} 23. g4 {[%emt 0:03:18]} Rd3 {[%emt 0:01:46]} 24. g5 {[%emt 0:04:38]} Rxh3 {[%emt 0:01:52]} 25. Bf2 {[%emt 0:00:10]} Rxc3 {[%emt 0:11:47]} 26. Bb3 {[%emt 0:12:22]} Rf3 {[%emt 0:06:52]} 27. Bxe6 {[%emt 0:01:49]} fxe6 {[%emt 0:00:23]} 28. Rb1 {[%emt 0:01:38]} Rxf4 {[%emt 0:01:59]} 29. Rb8+ {[%emt 0:01:09]} Kh7 {[%emt 0:00:05]} 30. Rb7+ {[%emt 0:02:21]} Kg8 {[%emt 0:00:06]} 31. gxh6 {[%emt 0:03:48]} Bxf6 {[%emt 0:02:08]} 32. Rxa7 {[%emt 0:01:22]} Rg4+ {[%emt 0:05:10]} 33. Kh1 {[%emt 0:02:39]} Bd4 {[%emt 0:01:21]} 34. Bxd4 {[%emt 0:01:03]} Rxd4 {[%emt 0:00:09]} 35. Rg7+ {[%emt 0:00:57]} Kh8 {[%emt 0:00:24]} 36. Rxg6 {[%emt 0:00:05]} Kh7 {[%emt 0:00:25]} 1/2-1/2

[Event "35th European Club Cup 2019"]
[Site "Ulcinj"]
[Date "2019.11.14"]
[Round "5.33"]
[White "Brunner, Lucas"]
[Black "Shankland, Sam"]
[Result "0-1"]
[ECO "D45"]
[WhiteElo "2441"]
[BlackElo "2679"]
[Annotator "RC"]
[PlyCount "66"]
[EventDate "2019.11.10"]
[EventType "team-tourn"]
[EventCountry "MNE"]
[SourceTitle "playchess.com"]
[Source "ChessBase"]
[SourceQuality "1"]
[WhiteTeam "Zurich SG"]
[BlackTeam "Alkaloid"]
[TimeControl "40/5400+30:1800+30"]

1. Nf3 {[%emt 0:00:00]} d5 {[%emt 0:00:00]} 2. d4 {[%emt 0:00:05]} Nf6 {[%emt 0:00:00]} 3. c4 {[%emt 0:00:18]} e6 {[%emt 0:00:00]} 4. Nc3 {[%emt 0:00:47]} c6 {[%emt 0:00:00]} 5. e3 {[%emt 0:01:16]} Nbd7 {[%emt 0:00:00]} 6. Qc2 {[%emt 0:00:24]} Bd6 {[%emt 0:00:08]} 7. b3 {[%emt 0:00:11]} O-O {[%emt 0:00:05]} 8. Be2 {[%emt 0:00:39]} b6 {[%emt 0:00:07]} 9. O-O {[%emt 0:00:15]} Bb7 {[%emt 0:00:20]} 10. Bb2 {[%emt 0:01:17]} Qe7 {[%emt 0:00:05]} 11. Rad1 {[%emt 0:07:10]} Rad8 {[%emt 0:00:06]} 12. Rfe1 {[%emt 0:04:31]} Rfe8 {[%emt 0:00:06]} 13. e4 {[%emt 0:05:29]} dxe4 {[%emt 0:01:46]} 14. Nxe4 {[%emt 0:02:42]} Nxe4 {[%emt 0:00:06]} 15. Qxe4 {[%emt 0:00:08]} Bb4 {[%emt 0:01:06]} 16. Rf1 {[%emt 0:00:50]} Nf6 {[%emt 0:00:34]} 17. Qe3 {[%emt 0:03:38]} c5 {[%emt 0:02:25]} 18. dxc5 {[%emt 0:09:28]} Bxc5 {[%emt 0:00:44]} 19. Qc3 {[%emt 0:01:08]} Rxd1 {[%emt 0:04:53]} 20. Bxd1 {[%emt 0:00:04]} Rd8 {[%emt 0:00:38]} 21. Be2 {[%emt 0:13:22]} h6 {[%emt 0:04:55]} 22. h3 {[%emt 0:05:52]} a5 {[%emt 0:02:03]} 23. Qe5 {[%emt 0:04:00]} Bxf3 {[%emt 0:06:11]} 24. Bxf3 {[%emt 0:00:11]} Rd2 {[%emt 0:00:15]} 25. g3 {[%emt 0:10:45]} Qd8 {[%emt 0:03:33]} 26. Kg2 {[%emt 0:00:49]} Qd3 {[%emt 0:04:47]} 27. Bc1 {[%emt 0:09:35]} Nd7 {[%emt 0:05:51]} 28. Qf4 {[%emt 0:14:29]} Rxa2 {[%emt 0:00:08]} 29. Bc6 {[%emt 0:01:40]} g5 {[%emt 0:10:29]} 30. Qf3 {[%emt 0:02:47]} Ne5 {[%emt 0:00:24]} 31. Qe4 {[%emt 0:00:25]} Re2 {[%emt 0:00:28]} 32. Qxd3 {[%emt 0:01:06]} Nxd3 {[%emt 0:00:05]} 33. Bf3 {[%emt 0:00:33]} Ne1+ {[%emt 0:00:07]} 0-1

[Event "35th European Club Cup 2019"]
[Site "Ulcinj"]
[Date "2019.11.15"]
[Round "6.1"]
[White "Efimenko, Zahar"]
[Black "Noe, Christopher"]
[Result "1/2-1/2"]
[ECO "A05"]
[WhiteElo "2601"]
[BlackElo "2533"]
[Annotator "ChessBase"]
[PlyCount "62"]
[EventDate "2019.11.10"]
[EventType "team-tourn"]
[EventCountry "MNE"]
[SourceTitle "playchess.com"]
[Source "ChessBase"]
[SourceQuality "1"]
[WhiteTeam "Beer Sheva"]
[BlackTeam "De Sprenger Echternach"]
[TimeControl "40/5400+30:1800+30"]

1. Nf3 {[%emt 0:00:12]} Nf6 {[%emt 0:00:00]} 2. g3 {[%emt 0:00:13]} g6 {[%emt 0:01:50]} 3. Bg2 {[%emt 0:02:07]} Bg7 {[%emt 0:00:07]} 4. O-O {[%emt 0:04:49]} O-O {[%emt 0:00:05]} 5. c4 {[%emt 0:00:27]} c6 {[%emt 0:00:43]} 6. d4 {[%emt 0:00:28]} d5 {[%emt 0:00:06]} 7. b3 {[%emt 0:00:26]} a5 {[%emt 0:05:38]} 8. Nc3 {[%emt 0:01:16]} Ne4 {[%emt 0:00:45]} 9. Bb2 {[%emt 0:00:23]} Bf5 {[%emt 0:25:08]} 10. e3 {[%emt 0:01:00]} Nxc3 {[%emt 0:02:10]} 11. Bxc3 {[%emt 0:00:06]} Be4 {[%emt 0:00:57]} 12. Qe2 {[%emt 0:01:19]} e6 {[%emt 0:01:51]} 13. Rfc1 {[%emt 0:03:19]} Qb6 {[%emt 0:11:08]} 14. Bf1 {[%emt 0:07:59]} Bxf3 {[%emt 0:00:31]} 15. Qxf3 {[%emt 0:00:05]} Nd7 {[%emt 0:00:40]} 16. Rab1 {[%emt 0:01:32]} Rfc8 {[%emt 0:00:29]} 17. a4 {[%emt 0:06:23]} Bf8 {[%emt 0:01:59]} 18. cxd5 {[%emt 0:11:06]} cxd5 {[%emt 0:02:02]} 19. Bb5 {[%emt 0:01:27]} Rc7 {[%emt 0:08:48]} 20. Bd2 {[%emt 0:15:36]} Ba3 {[%emt 0:12:23]} 21. Rxc7 {[%emt 0:04:05]} Qxc7 {[%emt 0:00:04]} 22. Qd1 {[%emt 0:01:41]} Nb8 {[%emt 0:01:41]} 23. Ra1 {[%emt 0:01:49]} Bd6 {[%emt 0:00:04]} 24. Rc1 {[%emt 0:12:45]} Nc6 {[%emt 0:00:04]} 25. Qc2 {[%emt 0:01:08]} Ba3 {[%emt 0:03:29]} 26. Ra1 {[%emt 0:00:10]} Bd6 {[%emt 0:00:05]} 27. Bxc6 {[%emt 0:03:30]} Ra6 {[%emt 0:04:46]} 28. Qd1 {[%emt 0:03:43]} Rxc6 {[%emt 0:00:17]} 29. Rc1 {[%emt 0:00:21]} Rxc1 {[%emt 0:00:14]} 30. Qxc1 {[%emt 0:00:16]} Qxc1+ {[%emt 0:00:06]} 31. Bxc1 {[%emt 0:00:03]} Bb4 {[%emt 0:00:25]} 1/2-1/2

[Event "35th European Club Cup 2019"]
[Site "Ulcinj"]
[Date "2019.11.15"]
[Round "6.2"]
[White "Ivic, Velimir"]
[Black "Sprenger, Jan Michael"]
[Result "1/2-1/2"]
[ECO "B41"]
[WhiteElo "2531"]
[BlackElo "2492"]
[Annotator "ChessBase"]
[PlyCount "110"]
[EventDate "2019.11.10"]
[EventType "team-tourn"]
[EventCountry "MNE"]
[SourceTitle "playchess.com"]
[Source "ChessBase"]
[SourceQuality "1"]
[WhiteTeam "Itaka"]
[BlackTeam "LSG IntelliMagic"]
[TimeControl "40/5400+30:1800+30"]

1. e4 c5 2. Nf3 e6 3. d4 cxd4 4. Nxd4 a6 5. c4 Nf6 6. Nc3 Qc7 7. Be2 Bb4 8. Nc2 Bxc3+ 9. bxc3 d6 10. Ba3 Nxe4 11. Qd4 f5 12. Bh5+ Kf8 13. O-O-O Nc6 14. Qe3 Na5 15. Be2 Kf7 16. f3 Nc5 17. Rxd6 Qxd6 18. Bxc5 f4 19. Bxd6 fxe3 20. Bc7 Nc6 21. Nxe3 e5 22. c5 Be6 23. Nc4 Bxc4 24. Bxc4+ Kf6 25. Rd1 Rhe8 26. Rd6+ Ke7 27. Bd3 Rac8 28. Bb6 g6 29. Be4 Rf8 30. Kd2 Rf6 31. Rd3 h6 32. Ke3 Ke6 33. Rd1 h5 34. h4 Ke7 35. a4 Ke6 36. Rd6+ Ke7 37. Rd1 Ke6 38. Ke2 Ke7 39. Rg1 Ke6 40. Rh1 Ke7 41. Ke3 Ke6 42. Kd3 Ke7 43. Rh3 Ke6 44. a5 Ke7 45. Ke3 Ke6 46. Rh1 Ke7 47. Rd1 Ke6 48. Rd2 Ke7 49. Kd3 Ke6 50. Kc4 Ke7 51. Rd1 Rg8 52. Bc7 Rc8 53. Bd6+ Ke6 54. Bd5+ Kf5 55. Be4+ Ke6 1/2-1/2